[Event "SUI-ch Bundesturnier TP-1 2022"]
[Site "Payerne"]
[Date "2022.05.26"]
[Round "2.3"]
[White "Collin, Moritz Valentin"]
[Black "Gschnitzer, Adrian"]
[Result "1-0"]
[ECO "D31"]
[WhiteElo "2052"]
[BlackElo "2441"]
[Annotator "TA"]
[PlyCount "97"]
[EventDate "2022.05.26"]
[EventType "swiss"]
[EventCountry "SUI"]
[SourceTitle "playchess.com"]
[Source "ChessBase"]
[SourceQuality "1"]
[TimeControl "5400+30"]

{[%evp 16,97,0,0,0,0,0,0,0,-12,0,-73,62,59,59,46,39,48,62,42,39,16,16,20,59,0,68,80,128,49,64,18,22,33,39,27,44,-14,-14,-32,-34,-58,0,-22,0,-51,0,0,58,0,0,-33,132,92,327,325,326,326,353,321,286,204,289,333,349,335,387,333,377,310,714,716,639,627,1239,1237,1165,1015,1614,1660,1605,1582,1407,1246]} 1. d4 {[%emt 0:00:02]} d5 {[%emt 0:00:09]} 2. c4 {[%emt 0:00:08]} e6 {[%emt 0:00:05]} 3. Nc3 {[%emt 0:00:04]} c6 {[%emt 0:00:08]} 4. e4 {[%emt 0:00:05]} dxe4 {[%emt 0:00:06]} 5. Nxe4 {[%emt 0:00:08]} Bb4+ {[%emt 0:00:08]} 6. Bd2 {[%emt 0:00:07][%cal Bc1d2,Bd2b4,Bb4a5,Ba5c3][%mdl 32]} Qxd4 {[%emt 0:00:07]} 7. Bxb4 {[%emt 0:00:17]} Qxe4+ {[%emt 0:00:06]} 8. Be2 {[%emt 0:00:07]} Na6 {[%emt 0:00:27]} 9. Ba5 {[%emt 0:00:05][%csl Ga5][%cal Rd1d8]} b6 {[%emt 0:00:45] D31: Queen's Gambit Declined: Semi-Slav without ...Nf6 (+ Marshall Gambit and Noteboom) and Exchange Variation lines without ...Nf6.} 10. Qd6 {[%emt 0:00:06]} Bd7 {[%emt 0:01:18]} (10... Ne7 $2 11. O-O-O $1 O-O 12. Qxe7 $18) 11. Bc3 {[%emt 0:00:16]} f6 {[%emt 0:00:26] The position is equal.} 12. Nf3 {[%emt 0:02:28][%cal Of3g5]} Nh6 {[%emt 0:00:12]} 13. O-O-O {[%emt 0:01:27]} Rd8 {[%emt 0:09:31]} (13... Nc5 $1 $17 14. Rhe1 (14. Bd3 Qg4 $15) 14... O-O-O) 14. Rhe1 {[%emt 0:21:15][%cal Of3g5][%mdl 1024] White has compensation.} Nf7 {[%emt 0:07:31] Against Ng5} 15. Qa3 {[%emt 0:08:13]} Bc8 $1 {[%emt 0:03:12] [#]} 16. Nd4 $146 {[%emt 0:11:30][%mdl 2048] White is more active.} (16. Bd3 Qf4+ 17. Re3 Qc7 $15) ({Predecessor:} 16. Rxd8+ Nxd8 17. Ng5 Qf4+ 18. Bd2 Qxh2 19. Ne4 c5 20. Qf3 f5 21. Ng5 Bb7 22. Qe3 {1-0 (28) Gungl,T (2370)-Eryshkanova,A (2199) Arandjelovac 2021}) 16... Qf4+ {[%emt 0:13:49]} 17. Kb1 {[%emt 0:03:11]} Nc5 {[%emt 0:04:34][%cal Ba6c5,Bc5a4,Ba4c3][%mdl 32]} 18. Bf3 {[%emt 0:08:41]} O-O {[%emt 0:03:08]} 19. Qxa7 {[%emt 0:02:46]} Ne5 {[%emt 0:04:51]} 20. Qxb6 {[%emt 0:05:43]} (20. g3 $14 Qh6 21. Qxb6) 20... Ned3 {[%emt 0:06:02]} (20... Na4 $11 21. Qa5 Nxf3 22. gxf3 c5) 21. g3 $14 {[%emt 0:04:01]} (21. Bxc6 Rxd4 22. Bxd4 Qxd4 $17) (21. Nxc6 Nxe1 22. Ne7+ (22. Rxd8 Qf5+) (22. Qxc5 Qe4+ 23. Ka1 Nc2+ 24. Kb1 Na3+ 25. Ka1 Rxd1+ 26. Bxd1 Qb1#) (22. Rxe1 Na4 $11) 22... Kf7 23. Rxd8 Rxd8 24. Qxd8 Ned3 $11) 21... Qg5 {[%emt 0:00:40]} ({Black should play} 21... Qh6) 22. Re2 {[%emt 0:02:30]} (22. Bxc6 $6 e5 23. Nc2 Be6 $11) (22. h4 $1 $16 {[%cal Rh4g5]} Qg6 23. h5) 22... Na4 {[%emt 0:02:54]} 23. Qb3 {[%emt 0:08:41]} ({Stronger than} 23. Qxc6 Nxc3+ 24. bxc3 Ne5 25. Rxe5 fxe5 $17) (23. Qa7 $14 Nxc3+ 24. bxc3) 23... Ndc5 $1 $11 {[%emt 0:00:45] Pair of Knights!} 24. Qc2 {[%emt 0:02:33] Strongly threatening Ree1. Active counter play!} Nxc3+ {[%emt 0:04:39]} 25. bxc3 {[%emt 0:02:27]} e5 {[%emt 0:01:31]} 26. h4 {[%emt 0:04:33]} (26. Nxc6 $14 Bf5 27. Ne7+ Kh8 28. Nxf5 Rxd1+ 29. Qxd1 Qxf5+ 30. Rc2) 26... Qg6 {[%emt 0:01:06]} 27. Qxg6 {[%emt 0:01:29]} (27. Bxc6 $5 {[%cal Rc6d5]} exd4 28. Qxg6 hxg6 29. cxd4 $11 (29. Bd5+ $2 Rxd5 30. cxd5 Bg4 $19)) 27... hxg6 {[%emt 0:00:04]} 28. Bxc6 {[%emt 0:00:30]} exd4 {[%emt 0:00:31]} (28... Bf5+ $5 29. Ka1 Kh7 $15) 29. cxd4 {[%emt 0:00:11]} ({But not} 29. Bd5+ $2 Rxd5 $1 {[%mdl 512]} 30. cxd5 Bg4 $19) 29... Ba6 {[%emt 0:13:04]} 30. Rc2 {[%emt 0:01:50]} (30. Red2 $11 Nb7 31. Bd5+ Kh7 32. Bxb7 Bxb7 33. d5) 30... Kh7 {[%emt 0:02:37]} (30... Bb7 $15 31. Bxb7 Nxb7) 31. a4 {[%emt 0:01:56]} Ne6 {[%emt 0:05:22]} (31... Bc8 $11) 32. d5 {[%emt 0:02:43]} (32. Bb5 $1 $14 Bc8 33. Rcd2) 32... Nc5 {[%emt 0:00:02]} 33. Kb2 {[%emt 0:01:05]} f5 $2 {[%emt 0:02:25]} (33... Rb8+ $15 34. Kc3 Rfc8) 34. Kc3 $16 {[%emt 0:00:43] Hoping for Kb4.} f4 $2 {[%emt 0:00:13] [#] A mistake that costs the game.} (34... Rb8 $16) 35. Kb4 $1 $18 {[%emt 0:01:17]} Ne4 {[%emt 0:01:19]} 36. Re2 {[%emt 0:01:58]} Nd6 {[%emt 0:02:14]} (36... Rb8+ $2 37. Bb5 Nf6 38. gxf4 $18) 37. Bb5 {[%emt 0:00:16]} Bc8 {[%emt 0:00:13]} 38. Ra2 {[%emt 0:00:55] And now c5 would win.} Ne4 {[%emt 0:03:32]} (38... Rf5 {was necessary.} 39. a5 fxg3) 39. a5 {[%emt 0:00:52][%cal Ba4a5,Ba5a6][%mdl 32]} fxg3 {[%emt 0:01:05]} 40. fxg3 {[%emt 0:01:03]} Nxg3 {[%emt 0:00:29]} 41. a6 {[%emt 0:00:32] d6 is the strong threat.} Ne4 {[%emt 0:01:04]} 42. Bc6 {[%emt 0:00:54] Black must now prevent a7.} Bg4 $2 {[%emt 0:01:18]} (42... Bxa6 43. Rxa6 Nd6) 43. Rd4 {[%emt 0:00:40] White is clearly winning.} Rb8+ {[%emt 0:02:20]} 44. Bb5 {[%emt 0:00:18]} Rf2 {[%emt 0:00:41]} 45. Rxf2 {[%emt 0:00:50]} Nxf2 {[%emt 0:00:01]} 46. Ka5 {[%emt 0:00:27]} Bc8 {[%emt 0:00:16]} 47. a7 {[%emt 0:00:21]} Ra8 {[%emt 0:00:02]} 48. Kb6 {[%emt 0:00:17]} Ng4 {[%emt 0:00:22]} 49. Bc6 {[%emt 0:00:28][%mdl 64] Trapped Piece.  Weighted Error Value: White=0.24 (precise) /Black=0.47} 1-0

[Event "SUI-ch Bundesturnier TP-1 2022"]
[Site "Payerne"]
[Date "2022.05.26"]
[Round "2.4"]
[White "Retti, Ivan"]
[Black "Joie, Sebastien"]
[Result "0-1"]
[ECO "B12"]
[WhiteElo "1992"]
[BlackElo "2376"]
[Annotator "TA"]
[PlyCount "63"]
[EventDate "2022.05.26"]
[EventType "swiss"]
[EventCountry "SUI"]
[SourceTitle "playchess.com"]
[Source "ChessBase"]
[SourceQuality "1"]
[TimeControl "5400+30"]

{[%evp 9,63,10,13,-3,17,16,16,4,14,9,18,0,22,22,22,-8,-9,0,0,-23,0,-55,-56,-106,-62,-121,-124,-129,-122,-122,-124,-156,-148,-167,-161,-176,-176,-176,-176,-183,-176,-217,-201,-210,-214,-305,-299,-333,-333,-314,-309,-551,-536,-841,-750,-741]} 1. e4 {[%emt 0:00:03]} c6 {[%emt 0:00:15]} 2. d4 {[%emt 0:00:08]} d5 {[%emt 0:00:03]} 3. e5 {[%emt 0:00:04]} Bf5 {[%emt 0:00:19]} 4. h4 {[%emt 0:00:05]} h5 {[%emt 0:00:24]} 5. Bd3 {[%emt 0:00:06]} Bxd3 {[%emt 0:00:06]} 6. Qxd3 {[%emt 0:00:05][%cal Oe5e6] B12: Caro-Kann: Advance Variation.} Qa5+ {[%emt 0:00:03]} 7. Nd2 {[%emt 0:01:49][%cal Oe5e6] Strongly threatening e6!} e6 {[%emt 0:00:30]} 8. Ngf3 {[%emt 0:01:22] The position is equal.} Nh6 {[%emt 0:03:09]} 9. c3 {[%emt 0:04:17] [#]} Be7 $146 {[%emt 0:02:36]} ({Predecessor:} 9... Nf5 10. Nb3 Qa6 11. Qxa6 Nxa6 12. Be3 Be7 13. Ke2 Rc8 14. g3 O-O 15. Kd2 Rfd8 {0-1 (49) Snitsarenko,I (1484)-Wahlgreen,N (1779) Bratislava 2019}) 10. Nf1 {[%emt 0:06:32]} Nf5 {[%emt 0:01:54]} 11. Ne3 {[%emt 0:02:35]} Nxe3 {[%emt 0:00:11]} 12. fxe3 {[%emt 0:01:42]} Qa6 {[%emt 0:00:11]} 13. Qxa6 {[%emt 0:06:35]} Nxa6 {[%emt 0:00:25]} 14. O-O {[%emt 0:01:08]} f5 {[%emt 0:02:58]} 15. exf6 {[%emt 0:06:37]} (15. a4 $11) 15... gxf6 $15 {[%emt 0:00:08]} 16. Bd2 {[%emt 0:00:26] Black converts the advantage convincingly.} ({White should play} 16. Re1 $15) 16... Kd7 {[%emt 0:00:56]} 17. Rac1 {[%emt 0:01:02]} (17. Rae1 $15) 17... Rhg8 $17 {[%emt 0:01:56]} 18. Rc2 {[%emt 0:04:37]} Rg4 {[%emt 0:00:40]} 19. Be1 {[%emt 0:01:37]} Rag8 {[%emt 0:00:11]} 20. Rff2 {[%emt 0:00:24]} Nc7 {[%emt 0:00:50][%cal Ba6c7,Bc7b5,Bb5d6,Bd6f5][%mdl 32] Black is more active.} 21. Kf1 {[%emt 0:00:37]} Nb5 {[%emt 0:03:58]} 22. Rfe2 {[%emt 0:03:17]} Nd6 {[%emt 0:00:20]} 23. b3 {[%emt 0:00:22]} Nf5 {[%emt 0:03:32]} 24. c4 {[%emt 0:01:51]} Bd6 {[%emt 0:00:35]} 25. cxd5 {[%emt 0:01:02]} exd5 {[%emt 0:01:29]} ({Stronger than} 25... cxd5 26. Kg1) 26. b4 {[%emt 0:00:54]} a6 {[%emt 0:03:26][%cal Ba7a6,Ba6a5][%mdl 32]} 27. a4 {[%emt 0:00:10]} (27. a3 $142) 27... Re8 $19 {[%emt 0:00:24]} 28. Bf2 {[%emt 0:03:18]} Bxb4 {[%emt 0:00:13]} 29. Rb2 {[%emt 0:00:05]} a5 {[%emt 0:00:07]} 30. Be1 $2 {[%emt 0:00:05] [#]} (30. Ne1) 30... Rxe3 {[%emt 0:01:27]} 31. Bxb4 {[%emt 0:00:14]} Rxe2 {[%emt 0:00:08]} 32. Rxe2 {[%emt 0:00:13] Weighted Error Value: White=0.41/Black=0.10 (very precise)} 0-1

[Event "SUI-ch Bundesturnier TP-1 2022"]
[Site "Payerne"]
[Date "2022.05.26"]
[Round "2.5"]
[White "Stijve, Theo"]
[Black "Jaggy, Matteo"]
[Result "1-0"]
[ECO "E60"]
[WhiteElo "2341"]
[BlackElo "1999"]
[Annotator "TA"]
[PlyCount "39"]
[EventDate "2022.05.26"]
[EventType "swiss"]
[EventCountry "SUI"]
[SourceTitle "playchess.com"]
[Source "ChessBase"]
[SourceQuality "1"]
[TimeControl "5400+30"]

{[%evp 9,39,35,35,42,42,50,49,46,88,61,116,129,128,89,206,204,435,427,429,416,439,433,395,380,375,362,685,-19,687,661,29996,589]} 1. d4 {[%emt 0:00:02]} Nf6 {[%emt 0:00:08]} 2. c4 {[%emt 0:00:08]} g6 {[%emt 0:00:07]} 3. h4 {[%emt 0:00:05]} h5 {[%emt 0:09:30]} 4. Nc3 {[%emt 0:01:06]} d5 {[%emt 0:02:30]} 5. Bg5 {[%emt 0:06:08]} dxc4 {[%emt 0:05:57]} 6. e4 {[%emt 0:04:45][%cal Be2e4,Be4e5][%mdl 32] E60: King's Indian: Unusual lines and Fianchetto Variation without Nc3.} Bg7 {[%emt 0:08:10][%cal Oc7c5]} 7. Bxc4 {[%emt 0:02:32]} O-O {[%emt 0:06:26][%cal Oc7c5]} 8. Nge2 {[%emt 0:06:04] [#] White is slightly better.} Nc6 $146 {[%emt 0:09:03]} ({Predecessor:} 8... c5 9. d5 Nbd7 10. Bb3 a6 11. f4 Ng4 12. d6 Bf6 13. e5 Bxg5 14. hxg5 exd6 15. Qxd6 {1-0 (28) Jacobsen,M (2315)-Andersen,D (1806) Hillerod 2020}) 9. e5 {[%emt 0:07:53]} Ng4 {[%emt 0:04:09]} (9... Na5 $14) 10. f3 $16 {[%emt 0:07:51]} Nh6 {[%emt 0:01:54]} 11. Qd2 {[%emt 0:07:21] White is more active.} Kh7 {[%emt 0:07:05] [#]} (11... Na5 $16 12. Bd5 (12. Bxh6 Nxc4 13. Qg5 Nxb2 $11) 12... c6) 12. g4 $1 $18 {[%emt 0:03:19]} hxg4 $2 {[%emt 0:25:28]} (12... Nxg4 13. fxg4 Bxg4) 13. h5 {[%emt 0:01:04]} Nxe5 {[%emt 0:00:07]} 14. hxg6+ {[%emt 0:05:09]} (14. dxe5 Qxd2+ 15. Kxd2 gxf3 16. hxg6+ (16. Bxe7 fxe2 17. Bxf8 Bxf8 $16) 16... fxg6 $18) 14... fxg6 {[%emt 0:01:26]} 15. dxe5 {[%emt 0:01:50][%cal Rg5h6]} ({Less strong is} 15. Bxh6 Nxf3+ 16. Kd1 Nxd2 $16) 15... Qxd2+ {[%emt 0:00:54]} 16. Kxd2 {[%emt 0:05:50] Threatens to win with f4.} ({Much less strong is} 16. Bxd2 gxf3 17. Nd4 b5 $18) 16... gxf3 {[%emt 0:04:06]} 17. Nf4 {[%emt 0:01:32][%cal Oh1h6] Hoping for Rxh6+!} ({Not} 17. Bxe7 Re8 $18) 17... f2 $2 {[%emt 0:07:09] [#]} (17... Rf5) 18. Rxh6+ $1 {[%emt 0:02:26][%mdl 512]} Bxh6 {[%emt 0:00:09]} 19. Rh1 {[%emt 0:00:06]} b5 {[%emt 0:01:34]} 20. Rxh6+ {[%emt 0:00:23] Weighted Error Value: White=0.06 (flawless) /Black=1.10} 1-0

[Event "SUI-ch Bundesturnier TP-1 2022"]
[Site "Payerne"]
[Date "2022.05.26"]
[Round "2.6"]
[White "Mattenberger, Matthias"]
[Black "Sutter, Oliver"]
[Result "1/2-1/2"]
[ECO "D36"]
[WhiteElo "1960"]
[BlackElo "2316"]
[Annotator "TA"]
[PlyCount "53"]
[EventDate "2022.05.26"]
[EventType "swiss"]
[EventCountry "SUI"]
[SourceTitle "playchess.com"]
[Source "ChessBase"]
[SourceQuality "1"]
[TimeControl "5400+30"]

{[%evp 26,53,28,18,24,22,20,18,25,17,26,-9,-1,-4,0,-6,0,0,0,-10,0,-33,-41,-29,-40,-35,-33,-80,-11,-15]} 1. d4 {[%emt 0:00:15]} d5 {[%emt 0:00:25]} 2. c4 {[%emt 0:00:04]} e6 {[%emt 0:00:22]} 3. Nc3 {[%emt 0:00:05]} Nf6 {[%emt 0:00:05]} 4. cxd5 {[%emt 0:00:03]} exd5 {[%emt 0:00:05]} 5. Bg5 {[%emt 0:00:05]} Be7 {[%emt 0:00:14]} 6. e3 {[%emt 0:00:09]} Nbd7 {[%emt 0:00:31]} 7. Bd3 {[%emt 0:00:12]} O-O {[%emt 0:00:18]} 8. Nge2 {[%emt 0:00:06]} h6 {[%emt 0:00:11]} 9. Bh4 {[%emt 0:00:05]} c6 {[%emt 0:00:12]} 10. Qc2 {[%emt 0:00:30]} Re8 {[%emt 0:00:29]} 11. O-O {[%emt 0:01:07]} Nh5 {[%emt 0:01:50]} 12. Bxe7 {[%emt 0:02:38]} Qxe7 {[%emt 0:00:05]} 13. Rab1 {[%emt 0:06:59]} a5 {[%emt 0:01:37]} 14. a3 {[%emt 0:01:19] [#]} b6 $146 {[%emt 0:17:48] D36: Queen's Gambit Declined: Exchange Variation: Main line (5 Bg5 c6 6 Qc2).} ({Predecessor:} 14... Nb6 15. b4 axb4 16. axb4 Bd7 17. Nc1 Nc4 18. Bxc4 dxc4 19. b5 Nf6 20. N1e2 g6 21. Qb2 Bf5 22. Ra1 {½-½ (66) Krasenkow,M (2576)-Asadli,V (2579) Warsaw 2021}) 15. e4 {[%emt 0:16:39]} dxe4 {[%emt 0:05:17]} 16. Bxe4 {[%emt 0:00:05]} Bb7 {[%emt 0:11:00][%cal Bc8b7,Bb7a6,Ba6c4][%mdl 32]} 17. Bf3 {[%emt 0:04:16]} Nhf6 {[%emt 0:01:08]} 18. Nf4 {[%emt 0:01:21]} Qd6 {[%emt 0:03:56]} 19. Nfe2 {[%emt 0:07:50]} Rac8 {[%emt 0:07:25]} 20. Qb3 {[%emt 0:04:29]} Ba6 {[%emt 0:03:48]} 21. Rfd1 {[%emt 0:01:27]} Qb8 {[%emt 0:06:55]} 22. Rbc1 {[%emt 0:04:14]} c5 {[%emt 0:03:53][%cal Oa6d3]} 23. a4 {[%emt 0:09:44]} cxd4 {[%emt 0:04:35]} 24. Nxd4 {[%emt 0:00:41]} Bc4 {[%emt 0:01:56]} 25. Qc2 {[%emt 0:01:42]} Ne5 {[%emt 0:00:55] Inhibits Nc6.} 26. Qf5 {[%emt 0:02:51] [#]} (26. Qd2 $15) 26... Rc5 {[%emt 0:16:18]} ({Black should play} 26... Nd3 $1 $17 {[%cal Rd3c1]} 27. Nc6 (27. Rxd3 $2 Rc5 $19) 27... Rxc6 28. Bxc6 Re5) 27. Qf4 {Weighted Error Value: White=0.10 (very precise) /Black=0.08 (flawless)} 1/2-1/2

[Event "SUI-ch Bundesturnier TP-1 2022"]
[Site "Payerne"]
[Date "2022.05.26"]
[Round "2.7"]
[White "Rohrer, Christophe"]
[Black "Bous, Florian"]
[Result "1/2-1/2"]
[ECO "C67"]
[WhiteElo "2285"]
[BlackElo "2010"]
[Annotator "TA"]
[PlyCount "76"]
[EventDate "2022.05.26"]
[EventType "swiss"]
[EventCountry "SUI"]
[SourceTitle "playchess.com"]
[Source "ChessBase"]
[SourceQuality "1"]
[TimeControl "5400+30"]

{[%evp 18,76,3,3,42,14,32,20,29,14,15,-6,25,-20,-15,-9,-17,-16,-11,-12,-9,-6,-7,-7,19,-18,0,-6,7,-4,11,0,27,-8,-4,-1,0,-14,-13,-25,-16,-22,-19,-19,0,-28,-24,-38,-22,-39,-21,-50,-38,-45,-36,-46,-46,-48,-47,-56,0]} 1. e4 {[%emt 0:00:04]} e5 {[%emt 0:00:07]} 2. Nf3 {[%emt 0:00:05]} Nc6 {[%emt 0:00:07]} 3. Bb5 {[%emt 0:00:10]} Nf6 {[%emt 0:00:08]} 4. O-O {[%emt 0:00:19][%cal Bh1f1,Bf1e1,Be1e5][%mdl 32]} Nxe4 {[%emt 0:00:23]} 5. Re1 {[%emt 0:00:25]} Nd6 {[%emt 0:01:58]} 6. Nxe5 {[%emt 0:00:20]} Nxe5 {[%emt 0:01:53]} 7. Rxe5+ {[%emt 0:00:07]} Be7 {[%emt 0:00:19]} 8. Bd3 {[%emt 0:00:33]} O-O {[%emt 0:01:53]} 9. Nc3 {[%emt 0:00:18]} Bf6 {[%emt 0:01:03]} 10. Re3 {[%emt 0:00:38][%cal Od3h7] [#] aiming for Bxh7+!} ({Much weaker is} 10. Qh5 g6 11. Qe2 Bxe5 12. Qxe5 Re8 $17) 10... Re8 {[%emt 0:01:03] C67: Ruy Lopez: Berlin Defence: 4 0-0 Nxe4.} 11. Qf3 {[%emt 0:08:29] [#]} (11. Nd5 {looks sharper.} Bg5 12. Rg3 Bf6 13. Nxf6+ Qxf6 14. Rf3) 11... Bg5 $146 {[%emt 0:03:24]} ({Predecessor:} 11... Rxe3 12. fxe3 b6 13. Qxa8 Qe7 14. Ba6 Qf8 15. Bxc8 Nxc8 16. Qb7 Nd6 17. Nd5 Be5 18. Qxc7 Nc4 19. Qxd7 Nxb2 20. Bxb2 Bxb2 21. Rf1 Be5 22. d4 Qb8 23. dxe5 {1-0 (23) Rohrer,C (2230)-Ouaki,M (2081) Europe Echecs INT 2021}) 12. Re2 {[%emt 0:13:18]} Rxe2 {[%emt 0:01:10] The position is equal.} (12... Rb8 {is more complex.} 13. b3 b6 14. Bb2 Bb7) 13. Qxe2 {[%emt 0:02:00]} Qe8 {[%emt 0:00:49]} 14. Qd1 {[%emt 0:16:08]} Qe5 {[%emt 0:04:30]} 15. b3 {[%emt 0:07:34]} (15. Bf1 $5 {[%cal Rd2d4]}) 15... b6 {[%emt 0:02:08]} 16. Qe2 {[%emt 0:12:04]} Qxe2 {[%emt 0:00:56]} 17. Nxe2 {[%emt 0:00:31]} Bb7 {[%emt 0:00:20]} 18. f3 {[%emt 0:00:33]} Re8 {[%emt 0:00:31]} 19. Kf2 {[%emt 0:01:13]} g6 {[%emt 0:02:03]} 20. c4 {[%emt 0:01:09]} Bh4+ {[%emt 0:02:05]} 21. Kf1 {[%emt 0:01:38]} (21. g3 $5 {[%cal Rg3h4]} Bf6 22. Rb1 $11) 21... Bf6 {[%emt 0:02:04]} 22. Rb1 {[%emt 0:00:12]} Nc8 {[%emt 0:00:42]} 23. Bb2 {[%emt 0:01:18]} Bxb2 {[%emt 0:00:26]} 24. Rxb2 {[%emt 0:00:02]} d5 {[%emt 0:00:27]} 25. Nc3 {[%emt 0:05:21]} dxc4 {[%emt 0:03:16]} 26. bxc4 {[%emt 0:00:37]} c5 {[%emt 0:00:23]} 27. Be4 {[%emt 0:01:13]} Bxe4 {[%emt 0:02:15]} 28. Nxe4 $11 {[%emt 0:01:00][%mdl 4096] [#] Endgame And now Nf6+ would win. KRN-KRN} Kg7 {[%emt 0:01:48] Inhibits Nf6.} 29. Rb3 {[%emt 0:03:43]} Rd8 {[%emt 0:00:40] Threatens to win with ...f5.} 30. Ke2 {[%emt 0:00:33]} Rd4 {[%emt 0:01:16]} 31. d3 {[%emt 0:00:56]} Ne7 {[%emt 0:00:16]} 32. Nc3 {[%emt 0:01:47]} Rd7 {[%emt 0:00:17]} 33. Ra3 {[%emt 0:01:06]} Kf6 {[%emt 0:01:16]} 34. f4 {[%emt 0:00:45]} Kf5 {[%emt 0:02:23] Black is slightly better.} 35. g3 {[%emt 0:02:19]} h5 {[%emt 0:00:12][%cal Oh5h4]} 36. Nd1 {[%emt 0:01:08]} Nc6 {[%emt 0:01:59]} 37. Ne3+ {[%emt 0:00:18]} Ke6 {[%emt 0:00:39]} 38. Nd5 {[%emt 0:01:09]} Ne7 {[%emt 0:00:39] Weighted Error Value: White=0.12 (very precise) /Black=0.10 (very precise)} (38... Kd6 $15) 1/2-1/2

[Event "SUI-ch Bundesturnier TP-1 2022"]
[Site "Payerne"]
[Date "2022.05.26"]
[Round "2.8"]
[White "Stijve, Niels"]
[Black "Loeffler, Markus"]
[Result "1/2-1/2"]
[ECO "B32"]
[WhiteElo "1994"]
[BlackElo "2272"]
[Annotator "TA"]
[PlyCount "69"]
[EventDate "2022.05.26"]
[EventType "swiss"]
[EventCountry "SUI"]
[SourceTitle "playchess.com"]
[Source "ChessBase"]
[SourceQuality "1"]
[TimeControl "5400+30"]

{[%evp 14,69,20,17,25,27,37,6,0,-47,-33,-38,-8,-45,-11,-11,-2,-17,-2,0,0,0,0,0,58,0,0,0,50,39,57,1,38,39,30,43,48,50,43,51,37,0,0,0,43,47,47,49,49,8,6,0,0,0,0,0,0,0]} 1. e4 {[%emt 0:00:04]} c5 {[%emt 0:00:04]} 2. Nf3 {[%emt 0:00:09][%cal Bg1f3,Bf3d4,Bd4b5,Bb5a3,Ba3c2,Bc2e3][%mdl 32]} Nc6 {[%emt 0:00:02]} 3. d4 {[%emt 0:00:11]} cxd4 {[%emt 0:00:02]} 4. Nxd4 {[%emt 0:00:10]} e5 {[%emt 0:00:07]} 5. Nb5 {[%emt 0:01:47]} d6 {[%emt 0:00:02]} 6. c4 {[%emt 0:04:06]} Be6 $1 {[%emt 0:00:32][%mdl 4] is now more promising than 6...Be7.} 7. N1c3 {[%emt 0:01:27]} a6 {[%emt 0:00:10]} 8. Na3 {[%emt 0:00:11]} g6 {[%emt 0:00:33] B32: Sicilian: Löwenthal and Kalashnikov Variations.} 9. Nc2 {[%emt 0:05:12]} Bg7 {[%emt 0:03:34] [#]} 10. Ne3 $146 {[%emt 0:05:25]} ({Predecessor:} 10. Be3 Nf6 11. Be2 Rc8 12. b3 O-O 13. O-O b5 14. cxb5 Ne7 15. Bd2 axb5 16. Bxb5 {0-1 (35) Anand,V (2753)-Maghsoodloo,P (2676) Chess.com INT 2020}) 10... Nf6 {[%emt 0:00:49]} 11. g3 {[%emt 0:00:24]} (11. Bd3 $11) 11... O-O {[%emt 0:04:46][%cal Ob7b5]} 12. Bg2 {[%emt 0:00:20]} Rc8 {[%emt 0:02:58]} 13. O-O {[%emt 0:04:43]} Na5 {[%emt 0:11:28]} 14. b3 {[%emt 0:01:37]} b5 $1 {[%emt 0:08:12][%cal Rb5c4]} 15. Ba3 {[%emt 0:02:27]} bxc4 {[%emt 0:04:53]} 16. Bxd6 {[%emt 0:12:28]} Re8 {[%emt 0:02:57][%cal Rc4b3]} ({Don't take} 16... cxb3 17. Bxf8 Qxf8 18. Ncd5 $16) 17. Bxe5 {[%emt 0:15:17]} cxb3 {[%emt 0:02:51]} 18. axb3 {[%emt 0:05:54]} Nc6 {[%emt 0:00:28]} (18... Qxd1 $11 19. Rfxd1 Nxb3) 19. Bd6 {[%emt 0:06:45]} ({White should play} 19. Bxf6 $14 Qxf6 20. Rc1) 19... Ng4 $11 {[%emt 0:37:53]} 20. Nxg4 {[%emt 0:09:28] [#] Black must now prevent e5.} Bxg4 {[%emt 0:00:44]} ({Better is} 20... Bxc3 $11 21. Rc1 Bxg4 22. Qxg4 Bd2 23. Rxc6 Rxc6) 21. Qxg4 $14 {[%emt 0:00:42]} Qxd6 {[%emt 0:00:20]} 22. Rac1 {[%emt 0:00:44]} (22. Rad1 $14 Nd4 23. Nd5) 22... Nd4 {[%emt 0:02:17] [#] Hoping for ...Qe6.} 23. Nb5 $1 {[%emt 0:04:27]} Qe6 {[%emt 0:04:35]} (23... Qb8 24. Nxd4) 24. Qxe6 {[%emt 0:00:08]} Nxe6 {[%emt 0:00:02]} 25. Nd6 {[%emt 0:01:55][%csl LRc8,LRe8][%cal Bb5d6,Bd6c8,Bc8e7][%mdl 32]} Rxc1 {[%emt 0:00:06]} 26. Rxc1 {[%emt 0:02:00]} Rd8 {[%emt 0:01:57]} 27. Rc8 {[%emt 0:03:29]} Rxc8 {[%emt 0:00:03]} 28. Nxc8 $11 {[%emt 0:00:06][%mdl 4096] Endgame KBN-KBN} Nc5 {[%emt 0:01:54]} 29. b4 {[%emt 0:00:47]} Nd3 {[%emt 0:00:05]} 30. Ne7+ {[%emt 0:04:22]} Kf8 {[%emt 0:00:02]} 31. Nd5 {[%emt 0:00:54] Threatens to win with Bf1.} (31. Nc6 $5 {[%cal Rg2f1]}) 31... Bd4 {[%emt 0:00:58] The position is equal.} 32. Bf1 {[%emt 0:00:17]} Nxf2 {[%emt 0:00:07]} 33. Kg2 {[%emt 0:00:38]} Nxe4 {[%emt 0:00:22]} 34. Bxa6 {[%emt 0:00:15]} Nc3 {[%emt 0:01:11]} 35. Nxc3 {[%emt 0:02:34] Weighted Error Value: White=0.16 (very precise) /Black=0.15 (very precise)} 1/2-1/2